fUSD/lending_fUSD_20260329
["ID","MTS","AMOUNT","RATE_DAILY","PERIOD"]
[419011224,1774750233066,-500.0,0.00011573,2]
[419011225,1774750233076,-278.30424113,0.00011599,2]
[419011226,1774750233236,-500.0,0.00011599,2]
[419011227,1774750233252,-500.0,0.00011599,2]
[419011228,1774750233262,-500.0,0.00011599,2]
[419011229,1774750233272,-500.0,0.00011599,2]
[419011230,1774750233281,-500.0,0.00011599,2]
[419011231,1774750233290,-500.0,0.00011599,2]
[419011232,1774750233299,-500.0,0.00011599,2]
[419011233,1774750233310,-429.97954282,0.00011599,2]
[419011234,1774750233319,-500.0,0.00011599,2]
[419011235,1774750233329,-500.0,0.00011599,2]
[419011236,1774750233340,-500.0,0.00011599,2]
[419011237,1774750233349,-500.0,0.00011599,2]
[419011238,1774750233358,-500.0,0.00011599,2]
[419011239,1774750233367,-500.0,0.00011599,2]
[419011240,1774750233377,-500.0,0.00011599,2]
[419011241,1774750233386,-500.0,0.00011599,2]
[419011242,1774750233395,-500.0,0.00011599,2]
[419011243,1774750233404,-500.0,0.00011599,2]
[419011244,1774750233414,-500.0,0.00011599,2]
[419011245,1774750233423,-500.0,0.00011599,2]
[419011246,1774750233432,-500.0,0.00011599,2]
[419011247,1774750233441,-500.0,0.00011599,2]
[419011248,1774750233451,-500.0,0.00011599,2]
[419011249,1774750233460,-500.0,0.00011599,2]
[419011250,1774750233470,-500.0,0.00011599,2]
[419011251,1774750233479,-500.0,0.00011599,2]
[419011252,1774750233489,-500.0,0.00011599,2]
[419011253,1774750233499,-500.0,0.00011599,2]
[419011254,1774750233509,-500.0,0.00011599,2]
[419011255,1774750233518,-500.0,0.00011599,2]
[419011256,1774750233528,-161.80850657,0.000116,2]
[419011257,1774750233537,-9999.99,0.000116,2]
[419011258,1774750233546,-2115.96,0.000116,2]
[419011259,1774750233556,-17134.21,0.000116,2]
[419011260,1774750233566,-49548.81,0.000116,2]
[419011261,1774750233575,-150.99,0.000116,2]
[419011262,1774750233585,-999.99,0.000116,2]
[419011263,1774750233594,-9999.99,0.000116,2]
[419011264,1774750233603,-1190.17,0.000116,2]
[419011265,1774750233613,-4623.27,0.000116,2]
[419011266,1774750233624,-500.0,0.000116,2]
[419011267,1774750233634,-5000.0,0.000116,4]
[419011268,1774750233645,-11023.20997226,0.00011613,2]
[419011269,1774750238671,-15101.9211093,0.00011613,2]
[419011270,1774750238681,-7500.0,0.000117,4]
[419011271,1774750238691,-1183.74053264,0.00011708,2]
[419011272,1774750238700,-44935.7627,0.00011713,2]
[419011273,1774750238710,-879.5849,0.00011713,2]
[419011274,1774750238719,-2500.0,0.00011745,2]
[419011276,1774750238728,-173.419,0.00011772,2]
[419011277,1774750238737,-1277.092,0.00011772,2]
[419011278,1774750238747,-1278.92098356,0.00011773,2]
[419011279,1774750238756,-502.90886908,0.00011773,2]
[419011280,1774750238765,-178.93015126,0.00011773,2]
[419011281,1774750238775,-8132.33007111,0.00011773,2]
[419011282,1774750238784,-562.70572857,0.00011773,2]
[419011283,1774750238794,-44754.35784553,0.00011773,2]
[419011284,1774750238803,-2701.24991713,0.00011773,2]
[419011285,1774750238812,-1183.74053264,0.00011773,2]
[419011286,1774750238821,-10000.0,0.000118,4]
[419011287,1774750238832,-9442.0,0.00011808,2]
[419011289,1774750238842,-152.67476278,0.00011811,2]
[419011291,1774750238852,-400.28079234,0.00011835,2]
[419011293,1774750238861,-200.0,0.00011838,2]
[419011295,1774750238871,-151.0,0.00011838,2]
[419011297,1774750238881,-151.0,0.00011838,2]
[419011300,1774750238890,-151.0,0.00011838,2]
[419011301,1774750238900,-151.0,0.00011838,2]
[419011304,1774750238910,-151.0,0.00011838,2]
[419011306,1774750238919,-151.0,0.00011838,2]
[419011308,1774750238929,-151.0,0.00011838,2]
[419011310,1774750238938,-151.0,0.00011838,2]
[419011312,1774750238947,-151.0,0.00011838,2]
[419011314,1774750238956,-151.0,0.00011838,2]
[419011316,1774750238965,-151.0,0.00011838,2]
[419011318,1774750238974,-151.0,0.00011842,2]
[419011319,1774750238984,-1023.96434805,0.00011844,3]
[419011321,1774750238993,-207.86951242,0.00011844,2]
[419011323,1774750239002,-500.0,0.00011844,2]
[419011325,1774750239012,-497.83640911,0.00011844,2]
[419011327,1774750239020,-500.0,0.00011844,2]
[419011329,1774750239030,-500.0,0.00011844,2]
[419011331,1774750239040,-532.18413519,0.00011844,2]
[419011333,1774750239052,-2500000.0,0.00011845,2]
[419011335,1774750239062,-500.0,0.00011873,2]
[419011337,1774750239071,-500.30534857,0.00011873,2]
[419011339,1774750239080,-500.0,0.00011873,2]
[419011342,1774750239091,-500.0,0.00011873,2]
[419011344,1774750239101,-500.0,0.00011874,2]
[419011346,1774750239111,-12500.0,0.000119,4]
[419011348,1774750239121,-442.28305486,0.00011952,2]
[419011349,1774750239130,-609.0,0.00011972,2]
[419011351,1774750239139,-272.0,0.00011972,2]
[419011352,1774750239148,-26125.13108156,0.00011978,2]
[419011353,1774750239159,-250.0,0.00012055,2]
[419011354,1774750239168,-44754.35784552,0.0001212,2]
[419011355,1774750239178,-1000.0,0.00012121,2]
[419011356,1774750239186,-1000.0,0.00012121,2]
[419011357,1774750239196,-429.85911728,0.00012121,2]
[419011358,1774750239205,-870.62839673,0.00012121,2]
[419011359,1774750239215,-200.33245203,0.00012121,2]
[419011360,1774750239224,-1000.0,0.00012121,2]
[419011361,1774750239234,-548.50354711,0.00012121,2]
[419011362,1774750239243,-501.32363081,0.00012121,2]
[419011363,1774750239252,-503.40008779,0.00012121,2]
[419011364,1774750239262,-1000.0,0.00012121,2]
[419011365,1774750239271,-1000.0,0.00012121,2]
[419011366,1774750239281,-1000.0,0.00012121,2]
[419011367,1774750239291,-954.80496102,0.00012121,2]
[419011368,1774750239300,-1000.0,0.00012121,2]
[419011369,1774750239309,-1000.0,0.00012121,2]
[419011370,1774750239319,-434.0,0.00012127,2]
[419011371,1774750239329,-500.0,0.00012148,2]
[419011372,1774750239338,-185.79533457,0.00012153,2]
[419011373,1774750239347,-448.0,0.00012228,2]
[419011374,1774750239357,-193.0,0.00012253,2]
[419011375,1774750239367,-1388.0,0.00012257,2]
[419011376,1774750239376,-194.0,0.00012277,2]
[419011377,1774750239385,-164.34,0.00012301,2]
[419011378,1774750239395,-182.0,0.00012302,2]
[419011379,1774750239404,-1183.7405326,0.00012307,2]
[419011380,1774750239414,-400.28079234,0.0001233,2]
[419011381,1774750239423,-151.0,0.00012337,2]
[419011382,1774750239432,-151.0,0.00012337,2]
[419011383,1774750239442,-151.0,0.00012337,2]
[419011384,1774750239451,-1500000.0,0.0001234,2]
[419011385,1774750239460,-26125.13108156,0.00012343,2]
[419011386,1774750239470,-1183.7405326,0.00012363,2]
[419011387,1774750239479,-200.0,0.00012386,2]
[419011388,1774750239489,-1000.0,0.00012421,2]
[419011389,1774750239498,-197.01734564,0.00012421,2]
[419011390,1774750239507,-1047.14103911,0.00012421,2]
[419011391,1774750239517,-500.0,0.00012422,2]
[419011392,1774750239526,-44754.35784552,0.00012467,2]
[419011393,1774750239536,-374.92,0.00012511,2]
[419011394,1774750239545,-420.0,0.00012513,2]
[419011395,1774750239555,-1680.0,0.00012529,2]
[419011396,1774750239564,-250.0,0.0001253,2]
[419011397,1774750239574,-195.0,0.0001253,2]
[419011398,1774750239583,-250.0,0.0001253,2]
[419011399,1774750239592,-1600.0,0.00012578,2]
[419011400,1774750239601,-255.0,0.00012633,2]
[419011401,1774750239611,-1002.80450242,0.00012668,2]
[419011402,1774750239620,-1002.61387031,0.00012668,2]
[419011403,1774750239629,-1500.0,0.00012668,2]
[419011404,1774750239639,-1500.0,0.00012668,2]
[419011405,1774750239649,-242.64552133,0.00012668,2]
[419011406,1774750239658,-1100.61320179,0.00012668,2]
[419011407,1774750239668,-1500.0,0.00012668,2]
[419011408,1774750239677,-1500.0,0.00012668,2]
[419011409,1774750239686,-500.0,0.00012696,2]
[419011410,1774750239695,-26125.13108156,0.00012709,2]
[419011411,1774750239705,-150.0,0.000128,2]
[419011412,1774750239714,-44754.35784552,0.00012814,2]
[419011413,1774750239723,-200.0,0.00012934,2]
[419011414,1774750239732,-1183.7405326,0.00012952,2]
[419011415,1774750239742,-1500.0,0.00012968,2]
[419011416,1774750239751,-500.0,0.0001297,2]
[419011417,1774750239761,-104005.21350705,0.00012999,2]
[419011418,1774750239770,-250.0,0.00013,2]
[419011419,1774750239779,-1523.32620652,0.00013,2]
[419011420,1774750239789,-209.08,0.0001306,2]
[419011421,1774750239798,-26125.13108156,0.00013074,2]
[419011422,1774750239807,-44754.35784552,0.00013161,2]
[419011423,1774750239816,-175.68789941,0.0001318,2]
[419011424,1774750239827,-2000.0,0.00013216,2]
[419011425,1774750239836,-2000.0,0.00013216,2]
[419011426,1774750239846,-2000.0,0.00013216,2]
[419011427,1774750239855,-2000.0,0.00013216,2]
[419011428,1774750239864,-500.0,0.00013244,2]
[419011429,1774750239875,-3240.0,0.00013425,2]
[419011430,1774750239884,-175.66974,0.00013425,2]
[419011431,1774750239894,-26125.13108156,0.00013439,2]
[419011432,1774750239903,-1852.42,0.0001348,2]
[419011433,1774750239912,-280.69815397,0.00013482,2]
[419011434,1774750239922,-2758.867422,0.00013486,2]
[419011435,1774750239932,-44754.35784552,0.00013509,2]
[419011436,1774750239941,-2095.96856595,0.00013516,2]
[419011437,1774750239951,-500.0,0.00013518,2]
[419011438,1774750240061,-1995.7881,0.00013546,2]
[419011439,1774750240072,-331.06409,0.00013546,2]
[419011440,1774750240082,-385.870832,0.00013546,2]
[419011441,1774750240091,-295.651221,0.00013563,2]
[419011442,1774750240101,-295.651221,0.00013563,2]
[419011443,1774750240111,-295.651221,0.00013563,2]
[419011444,1774750240120,-295.651221,0.00013563,2]
[419011445,1774750240130,-263.504612,0.00013631,2]
[419011446,1774750240140,-3480.0,0.00013643,5]
[419011447,1774750240149,-500.0,0.00013698,2]
[419011448,1774750240159,-500.0,0.00013698,2]
[419011449,1774750240169,-500.0,0.00013698,2]
[419011450,1774750240178,-500.0,0.00013698,2]
[419011451,1774750240188,-500.0,0.00013698,2]
[419011452,1774750240197,-500.0,0.00013698,2]
[419011453,1774750240208,-500.0,0.00013698,2]
[419011454,1774750240217,-150.16805847,0.00013698,2]
[419011455,1774750240227,-563.09074423,0.00013698,2]
[419011456,1774750240236,-500.0,0.00013698,2]
[419011457,1774750240246,-500.0,0.00013698,2]
[419011458,1774750240255,-500.0,0.00013698,2]
[419011459,1774750240264,-257.12633402,0.00013698,2]
[419011460,1774750240274,-500.0,0.00013698,2]
[419011461,1774750240284,-500.0,0.00013698,2]
[419011462,1774750240294,-500.0,0.00013698,2]
[419011463,1774750240304,-580.62432508,0.00013698,2]
[419011464,1774750240313,-505.30350392,0.00013698,2]
[419011465,1774750240322,-500.0,0.00013698,2]
[419011466,1774750240331,-500.0,0.00013698,2]
[419011467,1774750240340,-281.51766077,0.00013698,2]
[419011468,1774750240350,-500.0,0.00013698,2]
[419011469,1774750240360,-500.0,0.00013698,2]
[419011470,1774750240369,-500.0,0.00013698,2]
[419011471,1774750240378,-500.0,0.00013698,2]
[419011472,1774750240387,-500.0,0.00013698,2]
[419011473,1774750240397,-500.0,0.00013698,2]
[419011474,1774750240407,-500.0,0.00013698,2]
[419011475,1774750240416,-500.0,0.00013698,2]
[419011476,1774750240426,-162.75378098,0.00013698,2]
[419011477,1774750240435,-233.80364233,0.00013698,2]
[419011478,1774750240444,-587.57676003,0.00013698,2]
[419011479,1774750240454,-500.0,0.00013698,2]
[419011480,1774750240463,-500.0,0.00013698,2]
[419011481,1774750240473,-500.0,0.00013698,2]
[419011482,1774750240483,-500.0,0.00013698,2]
[419011483,1774750240492,-552.09,0.00013698,2]
[419011484,1774750240502,-552.09,0.00013698,2]
[419011485,1774750240511,-500.0,0.00013698,2]
[419011487,1774750240520,-513.22970324,0.00013698,2]
[419011488,1774750240529,-500.0,0.00013698,2]
[419011489,1774750240539,-500.0,0.00013698,2]
[419011490,1774750240548,-500.0,0.00013698,2]
[419011491,1774750240557,-289.69293567,0.00013698,2]
[419011492,1774750240566,-490.0,0.00013698,2]
[419011493,1774750240575,-500.0,0.00013698,2]
[419011494,1774750240585,-500.0,0.00013698,2]
[419011495,1774750240595,-500.0,0.00013698,2]
[419011496,1774750240603,-500.0,0.00013698,2]
[419011497,1774750240612,-500.0,0.00013698,2]
[419011498,1774750240622,-500.0,0.00013698,2]
[419011499,1774750240632,-500.0,0.00013698,2]
[419011500,1774750240642,-500.0,0.00013698,2]
[419011501,1774750240651,-500.0,0.00013698,2]
[419011502,1774750240660,-500.0,0.00013698,2]
[419011503,1774750240670,-500.0,0.00013698,2]
[419011504,1774750240679,-500.0,0.00013698,2]
[419011505,1774750240689,-500.0,0.00013698,2]
[419011506,1774750240698,-500.0,0.00013698,2]
[419011507,1774750240708,-500.0,0.00013698,2]
[419011508,1774750240717,-500.0,0.00013698,2]
[419011509,1774750240726,-500.0,0.00013698,2]
[419011510,1774750240736,-500.0,0.00013698,2]
[419011511,1774750240746,-500.0,0.00013698,2]
[419011512,1774750240755,-500.0,0.00013698,2]
[419011513,1774750240765,-500.0,0.00013698,2]
[419011514,1774750240774,-500.0,0.00013698,2]
[419011515,1774750240784,-500.0,0.00013698,2]
[419011516,1774750240794,-500.0,0.00013698,2]
[419011517,1774750240804,-500.0,0.00013698,2]
[419011518,1774750240814,-631.42723728,0.00013698,2]
[419011519,1774750240823,-511.61768064,0.00013698,2]
[419011520,1774750240833,-150.0,0.00013699,2]
[419011521,1774750240842,-150.0,0.00013699,2]
[419011522,1774750240851,-150.0,0.00013699,2]
[419011523,1774750240861,-150.0,0.00013699,2]
[419011524,1774750240870,-150.0,0.00013699,2]
[419011525,1774750240880,-371.26,0.00013699,2]
[419011526,1774750240889,-500.0,0.00013699,2]
[419011527,1774750240899,-500.0,0.00013699,2]
[419011528,1774750240908,-500.0,0.00013699,2]
[419011529,1774750240918,-500.0,0.00013699,2]
[419011530,1774750240928,-500.0,0.00013699,2]
[419011531,1774750240937,-500.0,0.00013699,2]
[419011532,1774750240947,-500.61251814,0.00013699,2]
[419011533,1774750240957,-500.0,0.00013699,2]
[419011534,1774750240967,-303.4827321,0.00013699,2]
[419011535,1774750240977,-161.75757125,0.00013699,2]
[419011536,1774750240986,-500.0,0.00013699,2]
[419011537,1774750240996,-500.0,0.00013699,2]
[419011538,1774750241006,-500.0,0.00013699,2]
[419011539,1774750241016,-500.79006539,0.00013699,2]
[419011540,1774750241026,-500.0,0.00013699,2]
[419011541,1774750241035,-500.0,0.00013699,2]
[419011542,1774750241045,-164.64289673,0.00013699,2]
[419011543,1774750241055,-500.0,0.00013699,2]
[419011544,1774750241064,-518.51040499,0.00013699,2]
[419011545,1774750241073,-160.27279954,0.00013699,2]
[419011546,1774750241082,-500.0,0.00013699,2]
[419011547,1774750241091,-500.0,0.00013699,2]
[419011548,1774750241100,-500.11753077,0.00013699,2]
[419011549,1774750241110,-500.0,0.00013699,2]
[419011550,1774750241119,-500.68353771,0.00013699,2]
[419011551,1774750241129,-166.38309596,0.00013699,2]
[419011552,1774750241138,-500.0,0.00013699,2]
[419011553,1774750241148,-500.48512281,0.00013699,2]
[419011554,1774750241158,-500.0,0.00013699,2]
[419011555,1774750241167,-337.48789903,0.00013699,2]
[419011556,1774750241176,-163.45026092,0.00013699,2]
[419011557,1774750241187,-500.0,0.00013699,2]
[419011558,1774750241196,-500.0,0.00013699,2]
[419011559,1774750241205,-501.05408276,0.00013699,2]
[419011560,1774750241214,-500.79800767,0.00013699,2]
[419011561,1774750241224,-500.0,0.00013699,2]
[419011562,1774750241234,-500.0,0.00013699,2]
[419011563,1774750241243,-254.72596748,0.00013699,2]
[419011564,1774750241252,-457.04,0.000137,2]
[419011565,1774750241261,-150.0,0.000137,2]
[419011566,1774750241271,-150.0,0.000137,2]
[419011567,1774750241281,-217.8882415,0.000137,2]
[419011568,1774750241290,-737.15,0.000137,2]
[419011569,1774750241300,-7615.24,0.000137,2]
[419011570,1774750241311,-805.5,0.000137,2]
[419011571,1774750241320,-1077.56,0.000137,2]
[419011572,1774750241330,-500.0,0.00013744,2]
[419011573,1774750241339,-9552.16786547,0.00013744,2]
[419011574,1774750241348,-151.0,0.00013744,2]
[419011575,1774750241358,-187.28708856,0.00013744,2]
[419011576,1774750241367,-262.90206542,0.00013744,2]
[419011577,1774750241377,-587.0,0.00013744,2]
[419011578,1774750241387,-500.0,0.00013761,2]
[419011579,1774750241396,-500.0,0.00013761,2]
[419011580,1774750241406,-500.0,0.00013761,2]
[419011581,1774750241415,-500.0,0.00013761,2]
[419011582,1774750241425,-552.09,0.00013761,2]
[419011583,1774750241435,-500.0,0.00013761,2]
[419011584,1774750241444,-500.0,0.00013761,2]
[419011585,1774750241454,-507.74203298,0.00013761,2]
[419011586,1774750241463,-500.0,0.00013761,2]
[419011587,1774750241472,-509.32626778,0.00013761,2]
[419011588,1774750241482,-1147.88588496,0.00013764,2]
[419011589,1774750241493,-1505.1887513,0.00013764,2]
[419011590,1774750241503,-672.12760916,0.00013764,2]
[419011591,1774750241512,-2500.0,0.00013764,2]
[419011592,1774750241522,-2351.0,0.00013782,2]
[419011593,1774750241531,-209.08,0.00013785,2]
[419011594,1774750241541,-433.0,0.0001379,2]
[419011595,1774750241551,-500.0,0.00013792,2]
[419011596,1774750241560,-500.0,0.00013799,2]
[419011597,1774750241569,-9905.5980765,0.00013799,2]
[419011598,1774750241578,-151.0,0.00013799,2]
[419011599,1774750241588,-272.62944185,0.00013799,2]
[419011600,1774750241597,-151.0,0.00013804,2]
[419011601,1774750241607,-151.0,0.00013804,2]
[419011602,1774750241616,-151.0,0.00013804,2]
[419011603,1774750241626,-151.0,0.00013804,2]
[419011604,1774750241637,-26125.13108156,0.00013804,2]
[419011605,1774750241647,-31077.5534,0.00013823,2]
[419011606,1774750241656,-1000.0,0.00013823,2]
[419011607,1774750241666,-502.90886906,0.00013837,2]
[419011608,1774750241676,-8132.3300711,0.00013837,2]
[419011609,1774750241685,-562.70572857,0.00013837,2]
[419011610,1774750241695,-2701.24991712,0.00013837,2]
[419011611,1774750241704,-500.0,0.00013854,2]
[419011612,1774750241714,-10272.10520533,0.00013854,2]
[419011613,1774750241723,-151.0,0.00013854,2]
[419011614,1774750241732,-282.71673119,0.00013854,2]
[419011615,1774750241742,-151.0,0.00013854,2]
[419011616,1774750241752,-151.0,0.00013854,2]
[419011617,1774750241761,-151.0,0.00013854,2]
[419011618,1774750241770,-500.0,0.00013909,2]
[419011619,1774750241780,-10652.17309792,0.00013909,2]
[419011620,1774750241789,-151.0,0.00013909,2]
[419011621,1774750241799,-293.17725025,0.00013909,2]
[419011622,1774750241808,-1000.0,0.00013944,2]
[419011623,1774750241818,-1000.0,0.00013944,2]
[419011624,1774750241827,-1000.0,0.00013944,2]
[419011625,1774750241836,-1000.0,0.00013944,2]
[419011626,1774750241846,-1000.0,0.00013944,2]
[419011627,1774750241856,-1000.0,0.00013944,2]
[419011628,1774750241866,-1000.0,0.00013944,2]
[419011629,1774750241875,-1000.0,0.00013944,2]
[419011630,1774750241884,-1000.0,0.00013944,2]
[419011631,1774750241894,-1000.0,0.00013944,2]
[419011632,1774750241904,-766.149,0.00013944,2]
[419011633,1774750241914,-500.0,0.00013964,2]
[419011634,1774750241923,-11046.30350255,0.00013964,2]
[419011635,1774750241932,-151.0,0.00013964,2]
[419011636,1774750241942,-304.02480851,0.00013964,2]
[419011637,1774750241951,-150.0,0.00013973,2]
[419011638,1774750241961,-150.0,0.00013973,2]
[419011639,1774750241971,-150.0,0.00013973,2]
[419011640,1774750241981,-150.0,0.00013973,2]
[419011641,1774750241990,-150.0,0.00013973,2]
[419011642,1774750241999,-1600.0,0.00013975,2]
[419011643,1774750242009,-514.0,0.00014,2]
[419011644,1774750242022,-7093.2976499,0.00014,7]
[419011645,1774750242031,-872.0709265,0.00014006,2]
[419011646,1774750242041,-503.557746,0.0001401,2]
[419011647,1774750242050,-503.557746,0.0001401,2]
[419011648,1774750242059,-503.557746,0.0001401,2]
[419011649,1774750242069,-503.557746,0.0001401,2]
[419011650,1774750242078,-500.0,0.00014019,2]
[419011651,1774750242088,-11455.01673214,0.00014019,2]
[419011652,1774750242097,-151.0,0.00014019,2]
[419011653,1774750242107,-335.87964325,0.00014019,2]
[419011654,1774750242116,-151.0,0.00014022,2]
[419011655,1774750242125,-500.0,0.00014066,2]
[419011656,1774750242135,-500.0,0.00014074,2]
[419011657,1774750242144,-11878.85235123,0.00014074,2]
[419011658,1774750242153,-151.0,0.00014074,2]
[419011659,1774750242247,-500.0,0.00014129,2]
[419011660,1774750242257,-2601.6412518,0.00014129,2]
[419011661,1774750242266,-151.0,0.00014129,2]
[419011662,1774750242276,-26125.13108156,0.0001417,2]
[419011663,1774750242285,-500.0,0.00014184,2]
[419011664,1774750242295,-151.0,0.00014184,2]
[419011665,1774750242304,-500.0,0.00014219,2]
[419011666,1774750242313,-500.0,0.00014239,2]
[419011667,1774750242322,-292.24092278,0.00014239,2]
[419011668,1774750242331,-150.0,0.00014247,2]
[419011669,1774750242341,-150.0,0.00014247,2]
[419011670,1774750242350,-150.0,0.00014247,2]
[419011671,1774750242360,-1000.0,0.00014247,2]
[419011672,1774750242369,-1000.0,0.00014247,2]
[419011673,1774750242379,-1000.0,0.00014247,2]
[419011674,1774750242388,-1000.77161479,0.00014247,2]
[419011675,1774750242397,-507.95072429,0.00014247,2]
[419011676,1774750242407,-1000.0,0.00014247,2]
[419011677,1774750242416,-1000.0,0.00014247,2]
[419011678,1774750242425,-1000.0,0.00014247,2]
[419011679,1774750242434,-1000.0,0.00014247,2]
[419011680,1774750242443,-1000.0,0.00014247,2]
[419011681,1774750242453,-1000.0,0.00014247,2]
[419011682,1774750242462,-1000.0,0.00014247,2]
[419011683,1774750242472,-1000.0,0.00014247,2]
[419011684,1774750242481,-1001.92036949,0.00014247,2]
[419011685,1774750242490,-679.35577738,0.00014247,2]
[419011686,1774750242500,-374.86231475,0.00014247,2]
[419011687,1774750242509,-501.64028841,0.00014247,2]
[419011688,1774750242519,-1000.0,0.00014247,2]
[419011689,1774750242529,-1000.0,0.00014247,2]
[419011690,1774750242539,-502.27060351,0.00014247,2]
[419011691,1774750242548,-1001.84409587,0.00014247,2]
[419011692,1774750242558,-1000.0,0.00014247,2]
[419011693,1774750242567,-500.0,0.00014294,2]
[419011694,1774750242576,-2505.96226832,0.00014312,2]
[419011695,1774750242585,-337.97256879,0.0001434,2]
[419011696,1774750242596,-154.53434814,0.00014389,2]
[419011697,1774750242605,-150.4394,0.000144,2]
[419011698,1774750242615,-295.651221,0.00014458,2]
[419011699,1774750242625,-295.651221,0.00014458,2]
[419011700,1774750242634,-295.651221,0.00014458,2]
[419011701,1774750242643,-295.651221,0.00014458,2]
[419011702,1774750242653,-374.92,0.00014476,2]
[419011703,1774750242662,-209.08,0.00014511,2]
[419011704,1774750242671,-164.34,0.00014523,2]
[419011705,1774750242681,-26125.13108156,0.00014535,2]
[419011706,1774750242690,-150.0,0.00014684,2]
[419011707,1774750242700,-299.385653,0.00014686,2]
[419011708,1774750242709,-500.0,0.00014761,2]
[419011709,1774750242718,-500.0,0.00014761,2]
[419011710,1774750242728,-500.0,0.00014761,2]
[419011711,1774750242737,-500.0,0.00014761,2]
[419011712,1774750242746,-552.09,0.00014761,2]
[419011713,1774750242756,-500.0,0.00014761,2]
[419011714,1774750242766,-500.0,0.00014761,2]
[419011715,1774750242775,-505.93653105,0.00014761,2]
[419011716,1774750242784,-398.26521729,0.00014795,2]
[419011717,1774750242794,-1076.69688643,0.00014795,2]
[419011718,1774750242802,-1042.69333386,0.00014795,2]
[419011719,1774750242812,-1500.0,0.00014795,2]
[419011720,1774750242821,-831.30897363,0.00014795,2]
[419011721,1774750242830,-1500.0,0.00014795,2]
[419011722,1774750242839,-1500.0,0.00014795,2]
[419011723,1774750242849,-1500.0,0.00014795,2]
[419011724,1774750242858,-1500.0,0.00014795,2]
[419011725,1774750242867,-1506.69665777,0.00014795,2]
[419011726,1774750242876,-910.63975449,0.00014795,2]
[419011727,1774750242886,-580.42962611,0.00014795,2]
[419011728,1774750242895,-684.37970889,0.00014795,2]
[419011729,1774750242904,-1500.0,0.00014795,2]
[419011730,1774750242914,-172.16887983,0.000149,2]
[419011731,1774750242925,-172.16887982,0.000149,2]
[419011732,1774750242934,-26125.13108156,0.000149,2]
[419011733,1774750242944,-160.0,0.00014996,2]
[419011734,1774750242954,-160.0,0.00014996,2]
[419011735,1774750242964,-959.8630956,0.00014996,2]
[419011736,1774750242973,-300.0,0.00015,2]
[419011737,1774750242983,-500.0,0.00015,2]
[419011738,1774750242992,-500.0,0.00015,2]
[419011739,1774750243002,-500.0,0.00015,2]
[419011740,1774750243012,-500.0,0.00015,2]
[419011741,1774750243021,-500.0,0.00015,2]
[419011742,1774750243031,-500.0,0.00015,2]
[419011743,1774750243040,-500.0,0.00015,2]
[419011744,1774750243051,-500.0,0.00015,2]
[419011746,1774750243062,-500.0,0.00015,2]
[419011748,1774750243072,-500.0,0.00015,2]
[419011750,1774750243082,-500.0,0.00015,2]
[419011752,1774750243092,-500.0,0.00015,2]
[419011754,1774750243102,-500.0,0.00015,2]
[419011755,1774750243111,-500.0,0.00015,2]
[419011757,1774750243121,-500.0,0.00015,2]
[419011759,1774750243130,-500.0,0.00015,2]
[419011760,1774750243140,-500.0,0.00015,2]
[419011761,1774750243149,-500.0,0.00015,2]
[419011762,1774750243159,-500.0,0.00015,2]
[419011763,1774750243169,-500.0,0.00015,2]
[419011764,1774750243179,-500.0,0.00015,2]